bitfinex/quotes_BTCUSD_20251231
["timestamp","ask_amount","ask_price","bid_price","bid_amount"]
[1767216962282,0.0114,87886.0,87872.0,0.60283615]
[1767216962731,0.05530895,87886.0,87872.0,0.60283615]
[1767216963925,0.0114,87886.0,87872.0,0.55693354]
[1767216964130,0.04390895,87885.0,87872.0,0.55693354]
[1767216964488,0.04390895,87885.0,87868.0,0.05045999]
[1767216964743,0.04390895,87885.0,87875.0,0.55693354]
[1767216964944,0.0114,87886.0,87875.0,0.55693354]
[1767216965204,0.0114,87886.0,87876.0,0.04590261]
[1767216965610,0.0114,87886.0,87875.0,0.55693354]
[1767216966416,0.0114,87886.0,87870.0,0.04590261]
[1767216966583,0.08488442,87885.0,87870.0,0.60283615]
[1767216966799,0.01137889,87882.0,87870.0,0.60283615]
[1767216967164,0.01137876,87883.0,87870.0,0.60283615]
[1767216967477,0.01137863,87884.0,87870.0,0.60283615]
[1767216967679,0.04390895,87884.0,87870.0,0.60283615]
[1767216967881,0.04390895,87884.0,87874.0,0.55693354]
[1767216968250,0.02277837,87886.0,87875.0,0.04590261]
[1767216968450,0.0114,87886.0,87877.0,0.04590261]
[1767216968829,0.04390895,87885.0,87870.0,0.55680426]
[1767216970120,0.0114,87886.0,87871.0,0.04590261]
[1767216970524,0.03603826,87886.0,87871.0,0.04590261]
[1767216970733,0.0114,87886.0,87871.0,0.04590261]
[1767216970886,0.03060909,87886.0,87871.0,0.04590261]
[1767216971412,0.0114,87885.0,87871.0,0.04590261]
[1767216971787,0.0600314,87885.0,87870.0,0.55680426]
[1767216973935,0.0114,87885.0,87871.0,0.04590261]
[1767216974116,0.0114,87885.0,87870.0,0.55680426]
[1767216974433,0.05932507,87884.0,87869.0,0.0114]
[1767216974642,0.08232914,87883.0,87870.0,0.55680426]
[1767216974844,0.01069367,87882.0,87870.0,0.55680426]
[1767216974992,0.01069367,87882.0,87871.0,0.04590261]
[1767216975339,0.01069367,87881.0,87871.0,0.04590261]
[1767216975516,0.01069367,87880.0,87871.0,0.04590261]
[1767216975723,0.01069367,87879.0,87871.0,0.04590261]
[1767216975955,0.0600314,87885.0,87871.0,0.04590261]
[1767216977530,0.0114,87885.0,87871.0,0.04590261]
[1767216977916,0.0486314,87884.0,87870.0,0.55680426]
[1767216979178,0.0114,87885.0,87871.0,0.04590261]
[1767216979392,0.0486314,87884.0,87870.0,0.55680426]
[1767216981224,0.06001003,87884.0,87870.0,0.55680426]
[1767216981380,0.0486314,87884.0,87870.0,0.55680426]
[1767216983494,0.0114,87885.0,87869.0,0.05932148]
[1767216983703,0.05773829,87885.0,87869.0,0.05932148]
[1767216983902,0.05773829,87885.0,87869.0,0.0114]
[1767216984118,0.1115611,87885.0,87870.0,0.04792148]
[1767216984325,0.0114,87885.0,87870.0,0.04792148]
[1767216984755,0.0227785,87885.0,87870.0,0.04792148]
[1767216984965,0.0114,87885.0,87870.0,0.04792148]
[1767216985528,0.0227785,87885.0,87870.0,0.04792148]
[1767216985725,0.01137876,87883.0,87870.0,0.04792148]
[1767216986047,0.04633829,87882.0,87868.0,0.0114]
[1767216986625,0.04332209,87881.0,87868.0,0.0114]
[1767216986942,0.04633829,87881.0,87868.0,0.0114]
[1767216987912,0.01069376,87880.0,87868.0,0.0114]
[1767216988115,0.01069376,87879.0,87868.0,0.0114]
[1767216988334,0.01069379,87878.0,87868.0,0.0114]
[1767216988465,0.04633829,87881.0,87868.0,0.0114]
[1767216989070,4.816e-05,87882.0,87869.0,0.04792148]
[1767217000572,0.01069465,87881.0,87869.0,0.04792148]
[1767217000915,4.816e-05,87882.0,87869.0,0.04792148]
[1767217000916,0.01069465,87880.0,87869.0,0.04792148]
[1767217001077,0.01069465,87879.0,87869.0,0.04792148]
[1767217001280,0.01069466,87878.0,87869.0,0.04792148]
[1767217001474,4.816e-05,87882.0,87869.0,0.04792148]
[1767217003034,1.6e-07,87882.0,87869.0,0.04792148]
[1767217013424,0.01069279,87881.0,87869.0,0.04792148]
[1767217013624,0.01069279,87880.0,87869.0,0.04792148]
[1767217013924,0.01069279,87879.0,87869.0,0.04792148]
[1767217014136,0.01069277,87878.0,87869.0,0.04792148]
[1767217014301,0.0114,87886.0,87878.0,0.000501]
[1767217014476,0.0114,87886.0,87873.0,0.0114]
[1767217014685,0.0114,87886.0,87873.0,0.05791299]
[1767217015120,0.0114,87886.0,87873.0,0.120532]
[1767217015319,0.05942703,87886.0,87873.0,0.07401917]
[1767217015533,0.05942703,87886.0,87873.0,0.01140016]
[1767217022046,0.0708054,87886.0,87873.0,0.01140016]
[1767217022201,0.05942703,87886.0,87873.0,0.01140016]
[1767217024738,0.0708054,87886.0,87873.0,0.01140016]
[1767217024937,0.04802703,87885.0,87873.0,0.01140016]
[1767217026458,0.0106901,87884.0,87873.0,0.01140016]
[1767217026761,0.0106901,87883.0,87873.0,0.01140016]
[1767217026962,0.0106901,87882.0,87873.0,0.01140016]
[1767217027164,0.05942703,87886.0,87873.0,0.01140016]
[1767217028421,0.0708054,87886.0,87873.0,0.01140016]
[1767217028859,0.0113785,87885.0,87873.0,0.01140016]
[1767217029525,0.12769771,87886.0,87873.0,0.01140016]
[1767217030092,0.0113785,87885.0,87873.0,0.01140016]
[1767217031823,0.01137863,87884.0,87873.0,0.01140016]
[1767217032189,0.01137876,87883.0,87873.0,0.01140016]
[1767217033229,0.01137863,87884.0,87873.0,0.01140016]
[1767217034142,0.0113785,87885.0,87873.0,0.05786499]
[1767217034522,0.02277837,87886.0,87873.0,0.05786499]
[1767217035375,0.0113785,87885.0,87873.0,0.05786499]
[1767217036190,0.01137863,87884.0,87873.0,0.05786499]
[1767217036573,0.01137876,87883.0,87873.0,0.05786499]
[1767217037293,0.01137876,87883.0,87873.0,0.01140016]
[1767217037454,0.01137889,87882.0,87873.0,0.01140016]
[1767217037641,0.01137876,87883.0,87873.0,0.01140016]
[1767217038637,0.01137863,87884.0,87873.0,0.01140016]
[1767217038873,0.02207165,87883.0,87873.0,0.01140016]
[1767217039057,0.01069289,87882.0,87873.0,0.01140016]
[1767217039269,0.01069289,87881.0,87873.0,0.01140016]
[1767217039469,0.01137863,87884.0,87873.0,0.01140016]
[1767217039766,0.0113785,87885.0,87873.0,0.01140016]
[1767217040548,0.01137863,87884.0,87873.0,0.01140016]
[1767217041362,0.0113785,87885.0,87873.0,0.01140016]
[1767217041556,0.01137863,87884.0,87873.0,0.01140016]
[1767217043738,0.03211341,87883.0,87873.0,0.01140016]
[1767217043857,0.02073465,87883.0,87873.0,0.01140016]
[1767217047446,0.01137863,87884.0,87873.0,0.01140016]
[1767217050077,0.01137889,87882.0,87873.0,0.01140016]
[1767217050225,0.01137863,87884.0,87873.0,0.01140016]
[1767217051327,0.01069359,87883.0,87873.0,0.01140016]
[1767217051527,0.01137915,87880.0,87873.0,0.01140016]
[1767217051766,0.02207287,87879.0,87873.0,0.01144816]
[1767217052088,0.01069359,87878.0,87873.0,0.01144816]
[1767217052293,0.01137928,87879.0,87873.0,4.816e-05]
[1767217052618,0.05715199,87877.0,87868.0,0.03418182]
[1767217052729,0.04577245,87877.0,87868.0,0.04558182]
[1767217052935,0.04577245,87877.0,87868.0,0.0114]
[1767217053261,0.01137902,87881.0,87869.0,0.04757697]
[1767217053833,0.01137902,87881.0,87868.0,0.0114]
[1767217053834,0.04577245,87880.0,87868.0,0.0114]
[1767217054268,0.04577245,87879.0,87868.0,0.0114]
[1767217055791,0.05689706,87878.0,87863.0,0.03433088]
[1767217055988,0.01137941,87878.0,87866.0,0.0114]
[1767217056412,0.05715173,87879.0,87866.0,0.0114]
[1767217057433,0.04577245,87879.0,87866.0,0.0114]
[1767217057995,0.0114,87886.0,87879.0,0.000549]
[1767217058197,0.03418318,87885.0,87879.0,0.000549]
[1767217058400,0.03418318,87885.0,87877.0,0.04757697]
[1767217058597,0.0114,87886.0,87877.0,0.04757697]
[1767217064471,0.0114,87886.0,87873.0,0.0114]
[1767217064642,0.00055,87877.0,87873.0,0.0114]
[1767217064846,0.01137876,87883.0,87873.0,0.0114]
[1767217065042,0.05715108,87884.0,87873.0,0.0114]
[1767217065373,0.01137889,87882.0,87873.0,0.0114]
[1767217065573,0.01068941,87881.0,87873.0,0.0114]
[1767217065774,0.01068941,87880.0,87873.0,0.0114]
[1767217065980,0.05715108,87884.0,87871.0,0.0114]
[1767217065981,0.01068941,87879.0,87871.0,0.0114]
[1767217066186,0.04577245,87884.0,87872.0,0.0114]
[1767217066380,0.01068939,87883.0,87872.0,0.0114]
[1767217066580,0.01068939,87882.0,87872.0,0.0114]
[1767217066780,0.05646184,87881.0,87872.0,0.0114]
[1767217066987,0.01068939,87880.0,87872.0,0.0114]
[1767217067906,0.01068939,87879.0,87872.0,0.0114]
[1767217068089,0.01137863,87884.0,87872.0,0.0114]
[1767217068291,0.01068938,87883.0,87872.0,0.0114]
[1767217068488,0.01068938,87882.0,87872.0,0.0114]
[1767217068826,0.01068938,87881.0,87872.0,0.0114]
[1767217069130,0.01068938,87880.0,87872.0,0.0114]
[1767217069276,0.01068938,87879.0,87872.0,0.0114]
[1767217069473,0.01137876,87883.0,87872.0,0.0114]
[1767217069680,0.01068938,87882.0,87872.0,0.0114]
[1767217069878,0.01068938,87881.0,87872.0,0.0114]
[1767217070116,0.01068938,87880.0,87872.0,0.0114]
[1767217070301,0.01068938,87879.0,87872.0,0.0114]
[1767217070499,0.01137876,87883.0,87872.0,0.0114]
[1767217070700,0.01068936,87882.0,87872.0,0.0114]
[1767217070901,0.01068936,87881.0,87872.0,0.0114]
[1767217071097,0.01068936,87880.0,87872.0,0.0114]
[1767217071387,0.01068936,87879.0,87872.0,0.0114]
[1767217071621,0.03674372,87882.0,87872.0,0.0114]
[1767217071800,0.01068935,87881.0,87872.0,0.0114]
[1767217072006,0.01068935,87880.0,87872.0,0.0114]
[1767217072202,0.01068935,87879.0,87872.0,0.0114]
[1767217072518,0.02638665,87880.0,87872.0,0.0114]
[1767217072725,0.01068934,87879.0,87872.0,0.0114]
[1767217072890,0.02638665,87880.0,87872.0,0.0114]
[1767217073099,0.01068935,87879.0,87872.0,0.0114]
[1767217073298,0.02638665,87880.0,87872.0,0.0114]
[1767217073506,0.01068936,87879.0,87872.0,0.0114]
[1767217073708,0.02638665,87880.0,87872.0,0.0114]
[1767217073909,0.01068936,87879.0,87872.0,0.0114]
[1767217074137,0.05780019,87885.0,87872.0,0.0114]
[1767217074369,0.01068936,87884.0,87872.0,0.0114]
[1767217074577,0.01068936,87883.0,87872.0,0.0114]
[1767217074797,0.01068936,87882.0,87872.0,0.0114]
[1767217075002,0.01068936,87881.0,87872.0,0.0114]
[1767217075202,0.01068936,87880.0,87872.0,0.0114]
[1767217075404,0.01068936,87879.0,87871.0,0.0114]
[1767217075602,0.04642169,87885.0,87871.0,0.0114]
[1767217075843,0.01068933,87884.0,87871.0,0.0114]
[1767217076019,0.01068933,87883.0,87871.0,0.0114]
[1767217076217,0.01068933,87882.0,87871.0,0.0114]
[1767217076529,0.01068933,87881.0,87871.0,0.0114]
[1767217076857,0.01068933,87880.0,87871.0,0.0114]
[1767217077154,0.01068933,87879.0,87871.0,0.0114]
[1767217077304,0.02570771,87884.0,87872.0,0.04620591]
[1767217077514,0.01068937,87883.0,87880.0,0.04620591]
[1767217077753,0.01068937,87882.0,87880.0,0.04620591]
[1767217077956,0.02924726,87888.0,87872.0,0.04620591]
[1767217078165,0.01068899,87887.0,87872.0,0.04620591]
[1767217078385,0.01068899,87886.0,87872.0,0.04620591]
[1767217078641,0.01068899,87885.0,87872.0,0.04620591]
[1767217078852,0.01068899,87884.0,87872.0,0.04620591]
[1767217079054,0.01068899,87883.0,87872.0,0.04620591]
[1767217079255,0.02924726,87888.0,87872.0,0.04620591]
[1767217081555,0.02924726,87888.0,87872.0,0.05460517]
[1767217083698,0.02924726,87888.0,87872.0,0.04620591]
[1767217083895,0.0114,87888.0,87872.0,0.04620591]
[1767217087173,0.02462573,87890.0,87872.0,0.04620591]
[1767217087477,0.02462573,87889.0,87872.0,0.04620591]
[1767217087700,0.0116,87892.0,87872.0,0.04620591]
[1767217087833,0.02462872,87891.0,87872.0,0.04620591]
[1767217089228,0.02462872,87891.0,87874.0,0.04620591]
[1767217089648,0.02462872,87891.0,87880.0,0.55689476]
[1767217090387,0.02462872,87891.0,87879.0,0.0114]
[1767217091286,0.01068861,87890.0,87879.0,0.0114]
[1767217091640,0.01068861,87889.0,87879.0,0.0114]
[1767217091850,0.01068861,87888.0,87879.0,0.0114]
[1767217092071,0.01068861,87887.0,87879.0,0.0114]
[1767217092191,0.01068861,87886.0,87879.0,0.0114]
[1767217092410,0.01068861,87885.0,87879.0,0.0114]
[1767217092614,0.01068788,87884.0,87880.0,0.04620591]
[1767217092930,0.02462872,87891.0,87884.0,0.00055]
[1767217093330,0.02462872,87891.0,87880.0,0.04620591]
[1767217093551,0.0116,87892.0,87882.0,0.04620591]
[1767217094049,0.0116,87892.0,87881.0,0.00917836]
[1767217094050,0.05802169,87892.0,87881.0,0.00917836]
[1767217096741,0.05802169,87892.0,87879.0,0.0114]
[1767217097360,0.05802169,87892.0,87883.0,0.00060905]
[1767217099846,0.0116,87892.0,87883.0,0.00060905]
[1767217103229,0.05872241,87892.0,87883.0,0.00060905]
[1767217104621,0.0116,87892.0,87883.0,0.00060905]
[1767217104801,0.01068877,87891.0,87883.0,0.00060905]
[1767217105002,0.01068877,87890.0,87883.0,0.00060905]
[1767217105213,0.01068877,87889.0,87883.0,0.00060905]
[1767217105418,0.01068877,87888.0,87883.0,0.00060905]
[1767217105623,0.01068877,87887.0,87883.0,0.00060905]
[1767217105820,0.01068877,87886.0,87883.0,0.00060905]
[1767217106028,0.01068877,87885.0,87883.0,0.00060905]
[1767217106231,0.01068877,87884.0,87883.0,0.00060905]
[1767217106428,0.0701,87892.0,87883.0,0.00060905]
[1767217107170,0.05872241,87892.0,87883.0,0.00060905]
[1767217111574,0.04732241,87892.0,87883.0,0.00060905]
[1767217114872,0.0001477,87894.0,87884.0,0.05450504]
[1767217115080,0.0001477,87894.0,87883.0,0.00060905]
[1767217115081,0.0002414,87902.0,87893.0,0.0484583]
[1767217115286,0.09428079,87900.0,87893.0,0.0484583]
[1767217116060,0.0002414,87902.0,87893.0,0.0484583]
[1767217116355,0.00059406,87902.0,87894.0,0.00598583]
[1767217116533,0.00059406,87902.0,87893.0,0.0484583]
[1767217117353,0.0001477,87911.0,87891.0,0.03417212]
[1767217117582,0.0001477,87911.0,87899.0,0.0484583]
[1767217117936,0.04712241,87918.0,87899.0,0.0484583]
[1767217117937,0.01120122,87915.0,87899.0,0.0484583]
[1767217118136,0.01115983,87915.0,87902.0,0.0484583]
[1767217118775,0.04712241,87918.0,87902.0,0.0484583]
[1767217118984,0.0114,87915.0,87902.0,0.0484583]
[1767217119649,0.0003477,87920.0,87902.0,0.0484583]
[1767217120061,0.0114,87919.0,87902.0,0.0484583]
[1767217120498,0.0114,87918.0,87902.0,0.0484583]
[1767217121302,0.0003477,87920.0,87902.0,0.0484583]
[1767217125328,0.0003477,87920.0,87904.0,0.0484583]
[1767217125682,0.0003477,87920.0,87906.0,0.0484583]
[1767217126010,0.0003477,87920.0,87907.0,0.0484583]
[1767217126467,0.0003477,87920.0,87908.0,0.00455513]
[1767217126673,0.0003477,87920.0,87909.0,0.0484583]
[1767217127852,0.0003477,87920.0,87910.0,0.00455513]
[1767217128068,0.0003477,87920.0,87911.0,0.0484583]
[1767217128273,0.0003477,87920.0,87911.0,0.0611714]
[1767217128640,0.0003477,87920.0,87912.0,0.00455513]
[1767217128840,0.0003477,87920.0,87913.0,0.0114]
[1767217129256,0.01137294,87928.0,87913.0,0.0114]
[1767217129442,0.0001477,87929.0,87914.0,0.00455513]
[1767217129642,0.01152051,87929.0,87914.0,0.00455513]
[1767217130415,0.01137294,87928.0,87914.0,0.00455513]
[1767217130754,0.01137345,87924.0,87914.0,0.00400613]
[1767217130957,0.01137332,87925.0,87914.0,0.00400613]
[1767217131786,0.1167705,87926.0,87914.0,0.00400613]
[1767217132357,0.01137332,87925.0,87913.0,0.0114]
[1767217132730,0.01137371,87922.0,87913.0,0.0114]
[1767217132852,0.01137397,87920.0,87913.0,0.01085]
[1767217133053,0.04813073,87921.0,87913.0,0.01085]
[1767217135900,0.04313073,87921.0,87913.0,0.01085]
[1767217136468,0.05450457,87921.0,87913.0,0.01085]
[1767217136644,0.01137371,87922.0,87913.0,0.01085]
[1767217136946,0.01137358,87923.0,87913.0,0.01085]
[1767217137149,0.01137345,87924.0,87913.0,0.01085]
[1767217137498,0.05726653,87926.0,87913.0,0.01085]
[1767217137747,0.06863973,87926.0,87913.0,0.01085]
[1767217138047,0.01137332,87925.0,87913.0,0.01085]
[1767217138561,0.0117732,87926.0,87913.0,0.01085]
[1767217139214,0.0117732,87926.0,87913.0,0.05825173]
[1767217140452,0.0004,87926.0,87913.0,0.05825173]
[1767217140901,0.01148865,87931.0,87914.0,0.00924159]
[1767217141033,0.01064486,87930.0,87915.0,0.04740173]
[1767217141234,0.01064806,87929.0,87915.0,0.04740173]
[1767217141551,0.0001161,87931.0,87915.0,0.04740173]
[1767217142161,0.01065208,87930.0,87915.0,0.04740173]
[1767217142356,0.01148865,87931.0,87915.0,0.04740173]
[1767217142520,0.01065227,87930.0,87916.0,0.06150278]
[1767217142741,0.0001161,87931.0,87916.0,0.06150278]
[1767217142946,0.01065227,87930.0,87916.0,0.06150278]
[1767217143146,0.01065766,87929.0,87916.0,0.06150278]
[1767217143392,0.0001161,87931.0,87916.0,0.06150278]
[1767217143593,0.01065783,87930.0,87917.0,0.06765306]
[1767217143924,0.01065783,87929.0,87917.0,0.06765306]
[1767217144057,0.0001161,87931.0,87917.0,0.06765306]
[1767217144259,0.0106578,87930.0,87918.0,0.04740173]
[1767217144445,0.0106578,87929.0,87918.0,0.04740173]
[1767217144640,0.0001161,87931.0,87918.0,0.04740173]
[1767217144894,0.01066514,87930.0,87918.0,0.04740173]
[1767217145093,0.01066514,87929.0,87918.0,0.04740173]
[1767217145305,0.01066514,87928.0,87918.0,0.04740173]
[1767217145518,7.34e-06,87927.0,87919.0,0.00810242]
[1767217145715,0.04813073,87933.0,87919.0,0.00810242]
[1767217145716,0.05953073,87941.0,87928.0,0.04755073]
[1767217145877,0.05953073,87941.0,87928.0,0.04740173]
[1767217146073,0.0114,87941.0,87928.0,0.04740173]
[1767217146278,0.06822145,87949.0,87919.0,0.00010574]
[1767217146279,0.01136945,87955.0,87941.0,0.00055]
[1767217146504,0.02276983,87952.0,87937.0,0.05880173]
[1767217146706,0.01136996,87951.0,87938.0,0.00588017]
[1767217146909,0.0114,87952.0,87938.0,0.00588017]
[1767217147127,0.0114,87952.0,87937.0,0.05880173]
[1767217147844,0.0001804,87953.0,87952.0,0.000149]
[1767217148050,0.0001804,87953.0,87941.0,0.04740173]
[1767217148495,0.0001804,87953.0,87943.0,0.04740173]
[1767217148694,3.14e-05,87953.0,87943.0,0.04740173]
[1767217148916,0.0227688,87960.0,87944.0,0.06334144]
[1767217149111,0.0114,87960.0,87945.0,0.05880173]
[1767217149534,0.0227688,87960.0,87945.0,0.05880173]
[1767217149848,0.01137151,87939.0,87925.0,0.04740173]
[1767217150149,0.01137177,87937.0,87929.0,0.03415753]
[1767217150312,0.06322768,87941.0,87929.0,0.03415753]
[1767217150515,0.01137177,87937.0,87929.0,0.03415753]
[1767217150711,0.06322768,87941.0,87929.0,0.03415753]
[1767217150910,0.01137113,87942.0,87929.0,0.03415753]
[1767217151120,0.01137126,87941.0,87929.0,0.03415753]
[1767217151303,0.01137151,87939.0,87929.0,0.03415753]
[1767217151494,0.01137126,87941.0,87929.0,0.03415753]
[1767217152169,0.01137113,87942.0,87929.0,0.03415753]
[1767217152370,0.04813073,87944.0,87930.0,0.0114]
[1767217152578,0.01137126,87941.0,87930.0,0.0114]
[1767217152784,0.05950069,87951.0,87941.0,0.000549]
[1767217152901,0.01137009,87950.0,87931.0,0.05675096]
[1767217153098,0.05950121,87947.0,87931.0,0.05675096]
[1767217153343,0.05950173,87943.0,87930.0,0.0114]
[1767217153542,0.01137113,87942.0,87930.0,0.0114]
[1767217153795,0.011371,87943.0,87930.0,0.05880173]
[1767217153920,0.01137138,87940.0,87930.0,0.05880173]
[1767217154135,0.01137126,87941.0,87931.0,0.0114]
[1767217154343,0.01137138,87940.0,87931.0,0.0114]
[1767217154583,0.04813073,87936.0,87928.0,0.02277138]
[1767217154741,0.05950328,87931.0,87915.0,0.04758213]
[1767217154940,0.04813073,87928.0,87916.0,0.0114]
[1767217155369,0.01137255,87931.0,87916.0,0.0114]
[1767217155939,0.01137268,87930.0,87916.0,0.0114]
[1767217156474,0.01137281,87929.0,87916.0,0.0114]
[1767217156702,0.01137268,87930.0,87916.0,0.0114]
[1767217157098,0.01137294,87928.0,87916.0,0.0114]
[1767217157463,0.01137307,87927.0,87915.0,0.00035342]
[1767217157663,0.01137307,87927.0,87916.0,0.0114]
[1767217158315,0.11171573,87929.0,87916.0,0.0114]
[1767217158316,0.04347845,87929.0,87916.0,0.0114]
[1767217158477,0.05485126,87929.0,87916.0,0.0114]
[1767217159015,0.01137294,87928.0,87916.0,0.0114]
[1767217159516,0.05485126,87929.0,87916.0,0.0114]
[1767217159862,0.01137307,87927.0,87916.0,0.0114]
[1767217160472,0.02963617,87927.0,87916.0,0.0114]
[1767217161146,0.01137294,87928.0,87916.0,0.05957695]
[1767217161724,0.01137281,87929.0,87916.0,0.05957695]
[1767217162978,0.01137268,87930.0,87916.0,0.05957695]
[1767217163093,0.01137281,87929.0,87916.0,0.05957695]
[1767217163780,0.01137281,87929.0,87915.0,0.00035342]
[1767217163781,0.04787785,87926.0,87915.0,0.00035342]
[1767217164086,0.04787785,87926.0,87916.0,0.0114]
[1767217164295,0.05925105,87926.0,87916.0,0.0114]
[1767217165794,0.04787785,87926.0,87916.0,0.0114]
[1767217166023,0.05925105,87926.0,87915.0,0.00035342]
[1767217166194,0.04787785,87921.0,87906.0,0.04012943]
[1767217166399,0.05925169,87921.0,87906.0,0.01175415]
[1767217168565,0.01137397,87920.0,87906.0,0.01175415]
[1767217169321,0.04783473,87921.0,87906.0,0.01175415]
[1767217169529,0.05920857,87921.0,87906.0,0.01175415]
[1767217170383,0.0113741,87919.0,87906.0,0.01175415]
[1767217170570,0.01137397,87920.0,87906.0,0.01175415]
[1767217170878,0.05920857,87921.0,87906.0,0.01175415]
[1767217171710,0.05191219,87920.0,87906.0,0.01175415]
[1767217172740,0.000802,87912.0,87906.0,0.01175415]
[1767217172940,0.05191219,87920.0,87906.0,0.01175415]
[1767217173253,0.04783473,87921.0,87906.0,0.01175415]
[1767217173828,0.04787785,87919.0,87906.0,0.01175415]
[1767217174681,0.04787785,87919.0,87906.0,0.00035415]
[1767217174822,0.01137488,87913.0,87906.0,0.00010215]
[1767217175024,0.01137501,87912.0,87906.0,0.00010215]
[1767217175268,0.01137488,87913.0,87906.0,0.00010215]
[1767217175470,0.01133176,87913.0,87906.0,0.00010215]
[1767217176175,0.0592526,87914.0,87906.0,0.00010215]
[1767217176488,0.01137488,87913.0,87906.0,0.00010215]
[1767217176892,0.01137501,87912.0,87906.0,0.00010215]
[1767217177247,0.01137488,87913.0,87906.0,0.00010215]
[1767217177443,0.04787785,87911.0,87906.0,0.00010215]
[1767217177647,0.04787785,87911.0,87900.0,0.0114]
[1767217177648,0.04787785,87911.0,87900.0,0.00987896]
[1767217177848,0.04787785,87911.0,87900.0,0.01023328]
[1767217179200,0.05925299,87911.0,87900.0,0.01023328]
[1767217179400,0.04787785,87911.0,87900.0,0.01023328]
[1767217179752,0.04787785,87910.0,87900.0,0.00035432]
[1767217182752,0.0114,87915.0,87900.0,0.04853127]
[1767217182903,0.02277462,87915.0,87910.0,0.000549]
[1767217183106,0.02277462,87915.0,87900.0,0.04853127]
[1767217183107,0.07065247,87915.0,87900.0,0.04853127]
[1767217183451,0.07722643,87915.0,87900.0,0.04853127]
[1767217184202,0.08860105,87915.0,87900.0,0.04853127]
[1767217185652,0.07722643,87915.0,87900.0,0.04853127]
[1767217185848,0.08860105,87915.0,87900.0,0.04853127]
[1767217189716,0.08860105,87915.0,87900.0,0.00035432]
[1767217189717,0.01137475,87914.0,87900.0,0.00035432]
[1767217189935,0.04787785,87913.0,87900.0,0.00035432]
[1767217191861,0.05925273,87913.0,87900.0,0.00035432]
[1767217192023,0.04787785,87913.0,87900.0,0.00035432]
[1767217193691,0.05925273,87913.0,87900.0,0.00035432]
[1767217194237,0.04787785,87913.0,87900.0,0.00035432]
[1767217194424,0.09579345,87913.0,87900.0,0.00035432]
[1767217195403,0.04787785,87913.0,87900.0,0.00035432]
[1767217195913,0.0114,87915.0,87900.0,0.04784758]
[1767217196210,0.0114,87915.0,87900.0,0.60402457]
[1767217196869,0.0114,87914.0,87900.0,0.60402457]
[1767217197617,0.01135727,87914.0,87900.0,0.60402457]
[1767217200608,0.01135727,87914.0,87901.0,0.04749326]
[1767217200812,0.0114,87917.0,87905.0,0.04749326]
[1767217201095,0.01068042,87916.0,87905.0,0.04749326]
[1767217201304,0.0114,87917.0,87905.0,0.04749326]
[1767217201305,0.01068042,87915.0,87905.0,0.04749326]
[1767217201458,0.04575735,87928.0,87915.0,0.000549]
[1767217201661,0.01068097,87927.0,87915.0,0.04804226]
[1767217201865,0.01068097,87926.0,87915.0,0.04804226]
[1767217202072,0.01068097,87925.0,87915.0,0.04749326]
[1767217202268,0.01068097,87924.0,87915.0,0.04749326]
[1767217202641,0.01068097,87923.0,87915.0,0.04749326]
[1767217202810,0.01068097,87922.0,87915.0,0.04749326]
[1767217202988,0.01068097,87921.0,87915.0,0.04749326]
[1767217203306,0.01137294,87928.0,87915.0,0.04749326]
[1767217203502,0.01068157,87927.0,87915.0,0.04749326]
[1767217203713,0.01068157,87926.0,87915.0,0.04749326]
[1767217203855,0.01068157,87925.0,87915.0,0.04749326]
[1767217204054,0.01068157,87924.0,87915.0,0.04749326]
[1767217204252,0.01068157,87923.0,87915.0,0.04749326]
[1767217204495,0.01068157,87922.0,87909.0,0.05889326]
[1767217204874,0.01068157,87921.0,87909.0,0.05889326]
[1767217205070,0.01137345,87924.0,87909.0,0.05889326]
[1767217205290,0.01068175,87923.0,87909.0,0.05889326]
[1767217205509,0.01068175,87922.0,87909.0,0.05889326]
[1767217205748,0.01068175,87921.0,87909.0,0.05889326]
[1767217205952,0.11399753,87925.0,87909.0,0.05889326]
[1767217206119,0.06781181,87924.0,87909.0,0.05889326]
[1767217206300,0.01068101,87923.0,87909.0,0.05889326]
[1767217206502,0.01068101,87922.0,87909.0,0.05889326]
[1767217206723,0.04575735,87924.0,87909.0,0.05889326]
[1767217206903,0.01068022,87923.0,87909.0,0.05889326]
[1767217207111,0.01068022,87922.0,87909.0,0.05889326]
[1767217207309,0.04575735,87924.0,87909.0,0.05889326]
[1767217207666,0.01067949,87923.0,87909.0,0.05889326]
[1767217207806,0.01067949,87922.0,87909.0,0.05889326]
[1767217208157,0.04575735,87924.0,87909.0,0.05889326]
[1767217208347,0.01067905,87923.0,87909.0,0.05889326]
[1767217208506,0.01067905,87922.0,87909.0,0.05889326]
[1767217208704,0.04575735,87924.0,87909.0,0.05889326]
[1767217208931,0.01067885,87923.0,87909.0,0.05889326]
[1767217209250,0.01067885,87922.0,87909.0,0.05889326]
[1767217209391,0.04575735,87924.0,87909.0,0.05889326]
[1767217209593,0.01067827,87923.0,87909.0,0.05889326]
[1767217209839,0.01067827,87922.0,87910.0,0.60367025]
[1767217210045,0.04575735,87924.0,87910.0,0.60367025]
[1767217210196,0.01067827,87923.0,87910.0,0.60367025]
[1767217210388,0.01067827,87922.0,87910.0,0.60367025]
[1767217210713,0.04575735,87924.0,87910.0,0.60367025]
[1767217210912,0.01067787,87923.0,87910.0,0.60367025]
[1767217211114,0.01067787,87922.0,87910.0,0.60367025]
[1767217211415,0.04575735,87924.0,87910.0,0.60367025]
[1767217211616,0.01067756,87923.0,87910.0,0.60367025]
[1767217211894,0.01067756,87922.0,87910.0,0.60367025]
[1767217212056,0.04575735,87924.0,87910.0,0.60367025]
[1767217212221,0.01067756,87923.0,87910.0,0.60367025]
[1767217212419,0.01067756,87922.0,87910.0,0.60367025]
[1767217212626,0.04575735,87924.0,87910.0,0.04749326]
[1767217212962,0.01067732,87923.0,87910.0,0.04749326]
[1767217213170,0.01067732,87922.0,87910.0,0.04749326]
[1767217213360,0.04575735,87924.0,87910.0,0.04749326]
[1767217213563,0.01067715,87923.0,87910.0,0.04749326]
[1767217213760,0.01067715,87922.0,87910.0,0.04749326]
[1767217213990,0.04575735,87924.0,87910.0,0.04749326]
[1767217214147,0.01067715,87923.0,87910.0,0.04749326]
[1767217214355,0.01067715,87922.0,87910.0,0.04749326]
[1767217214518,0.04575735,87924.0,87910.0,0.04749326]
[1767217214719,0.01067704,87923.0,87910.0,0.04749326]
[1767217214919,0.01067704,87922.0,87910.0,0.04749326]
[1767217215119,0.04575735,87924.0,87910.0,0.04749326]
[1767217215356,0.01067704,87923.0,87910.0,0.04749326]
[1767217215598,0.01067704,87922.0,87910.0,0.04749326]
[1767217215899,0.04575735,87924.0,87910.0,0.04749326]
[1767217216121,0.010677,87923.0,87910.0,0.04749326]
[1767217216357,0.010677,87922.0,87910.0,0.04749326]
[1767217216503,0.04575735,87924.0,87910.0,0.04749326]
[1767217216720,0.01067703,87923.0,87910.0,0.04749326]
[1767217217065,0.01067703,87922.0,87910.0,0.04749326]